bitfinex/quotes_SOLUSD_20250130
["timestamp","ask_amount","ask_price","bid_price","bid_amount"]
[1738241601996,4.1612,240.31,240.26,1.4972]
[1738241602698,7.99407956,240.32,240.26,1.4972]
[1738241602879,7.99407956,240.32,240.26,5.6593]
[1738241603599,7.99407956,240.32,240.26,1.4972]
[1738241604109,12.15527956,240.32,240.26,1.4972]
[1738241607095,12.18527956,240.32,240.26,1.4972]
[1738241608397,8.02407956,240.32,240.26,5.6593]
[1738241608907,0.03,240.32,240.26,5.6593]
[1738241609087,8.02407956,240.32,240.26,5.6593]
[1738241610101,8.02407956,240.32,240.26,1.4972]
[1738241610305,12.18517956,240.32,240.26,1.4972]
[1738241614203,7.99407956,240.28,240.26,1.4972]
[1738241616909,12.15577956,240.29,240.26,1.4972]
[1738241617089,4.1614,240.3,240.26,1.4972]
[1738241617895,12.15547956,240.3,240.26,1.4972]
[1738241620513,7.99407956,240.3,240.26,1.4972]
[1738241626407,12.15557956,240.3,240.26,1.4972]
[1738241630230,7.99407956,240.28,240.26,1.4972]
[1738241630522,7.99407956,240.28,240.26,0.063]
[1738241632721,12.15587956,240.28,240.26,0.063]
[1738241633433,0.83794239,240.27,240.26,0.063]
[1738241634126,8.83202195,240.27,240.26,0.063]
[1738241634630,12.99392195,240.27,240.26,0.063]
[1738241634925,26.53126048,240.27,240.26,0.063]
[1738241640736,13.11941195,240.27,240.26,0.063]
[1738241642705,13.11941195,240.27,240.25,0.063]
[1738241642706,0.37647,240.26,240.25,0.063]
[1738241642908,53.75871633,240.26,240.25,0.0001]
[1738241643847,54.22018872,240.26,240.25,0.0001]
[1738241645445,58.38228872,240.26,240.25,0.0001]
[1738241646538,26.40597048,240.26,240.25,0.0001]
[1738241646843,28.53146048,240.26,240.25,0.0001]
[1738241648543,60.50777872,240.26,240.25,0.0001]
[1738241649940,0.37647,240.21,240.19,0.063]
[1738241650143,24.24387048,240.2,240.19,0.063]
[1738241650515,24.36936048,240.2,240.19,0.0001]
[1738241651519,35.91380853,240.18,240.17,0.063]
[1738241651836,44.36936048,240.18,240.17,0.063]
[1738241652157,48.53286048,240.18,240.17,0.063]
[1738241652962,13.91380853,240.17,240.16,0.063]
[1738241653128,21.90788809,240.17,240.16,0.063]
[1738241653954,0.12549,240.13,240.1,0.063]
[1738241654254,12.40975956,240.11,240.1,0.063]
[1738241655032,25.94709809,240.11,240.1,0.063]
[1738241655237,27.40857048,240.11,240.1,0.063]
[1738241656049,26.40857048,240.11,240.1,0.063]
[1738241656252,27.40857048,240.11,240.1,0.063]
[1738241656426,4.87715239,240.11,240.1,0.063]
[1738241658673,12.99672195,240.11,240.1,0.063]
[1738241659668,12.62025195,240.11,240.1,0.063]
[1738241659861,12.15877956,240.11,240.1,0.063]
[1738241661643,12.53524956,240.11,240.1,0.063]
[1738241661845,27.94709809,240.11,240.1,0.0001]
[1738241662055,1.37647,240.06,240.01,0.063]
[1738241662239,43.24387048,240.06,240.01,0.063]
[1738241662456,42.24387048,240.06,240.01,0.063]
[1738241662766,43.91250548,240.06,240.01,0.063]
[1738241662970,30.50065695,240.06,240.01,0.063]
[1738241663354,44.91250548,240.06,240.01,0.063]
[1738241663875,49.07810548,240.06,240.01,0.063]
[1738241664874,48.07810548,240.06,240.01,0.063]
[1738241665055,34.66625695,240.06,240.01,0.063]
[1738241665264,29.66271456,240.06,240.01,0.063]
[1738241665465,9.66271456,240.06,240.01,0.063]
[1738241667574,13.82831456,240.06,240.01,0.063]
[1738241669772,14.28978695,240.06,240.01,0.063]
[1738241671373,13.82831456,240.06,240.01,0.063]
[1738241671874,5.834235,240.06,240.01,0.063]
[1738241673177,1.668635,240.06,240.01,0.063]
[1738241673871,1.668635,240.06,240.01,8.05707956]
[1738241675154,1.668635,240.06,240.01,0.063]
[1738241676878,1.668635,240.06,240.02,4.1663]
[1738241677081,12.15917956,240.09,240.02,4.1663]
[1738241677380,4.1663,240.08,240.02,4.1663]
[1738241677578,8.02407956,240.09,240.02,4.1663]
[1738241677874,16.01815856,240.09,240.02,4.1663]
[1738241679459,7.99407956,240.06,240.01,0.063]
[1738241679662,8.24505956,240.06,240.01,0.063]
[1738241681185,12.53614956,240.06,240.01,0.063]
[1738241681887,12.15967956,240.06,240.01,0.063]
[1738241684672,12.99762195,240.06,240.01,0.063]
[1738241690298,27.40947048,240.06,240.05,0.0001]
[1738241690501,0.25098,240.02,240.01,0.063]
[1738241690670,8.70653195,240.02,240.01,0.063]
[1738241691587,26.28468048,240.02,240.01,0.063]
[1738241692899,27.28468048,240.02,240.01,0.063]
[1738241694069,27.41017048,240.02,240.01,0.063]
[1738241694602,12.99832195,240.02,240.01,0.063]
[1738241699713,12.99832195,240.02,240.01,0.02700774]
[1738241703215,12.53684956,240.02,240.01,0.02700774]
[1738241703622,12.16037956,240.02,240.01,0.02700774]
[1738241704616,23.80456564,240.09,240.03,1.5267]
[1738241704819,0.03,240.09,240.03,9.52077956]
[1738241706403,8.02407956,240.09,240.03,1.5267]
[1738241707517,7.99407956,240.07,240.03,1.5267]
[1738241707912,4.1656,240.06,240.03,1.5267]
[1738241709221,7.99407956,240.06,240.03,1.5267]
[1738241709409,7.99407956,240.05,240.01,0.02700774]
[1738241710215,0.49147239,240.09,240.01,0.02700774]
[1738241710216,7.99407956,240.03,240.01,0.02700774]
[1738241710621,7.99407956,240.04,240.01,0.02700774]
[1738241711628,4.1661,240.03,240.01,0.02700774]
[1738241715217,7.99407956,240.04,240.01,0.02700774]
[1738241715405,0.03,240.06,240.01,0.02700774]
[1738241715806,4.1956,240.06,240.01,0.02700774]
[1738241717111,0.03,240.06,240.01,0.02700774]
[1738241719159,0.03,240.06,240.02,7.99407956]
[1738241719644,0.03,240.06,240.04,7.99407956]
[1738241724739,0.03,240.06,240.05,15.73687956]
[1738241727138,0.03,240.06,240.05,19.90257956]
[1738241728628,0.03,240.06,240.05,20.52731481]
[1738241729448,0.03,240.16,240.05,34.44112334]
[1738241729653,0.03,240.16,240.08,7.99407956]
[1738241732252,0.03,240.16,240.08,12.15927956]
[1738241736929,0.03,240.16,240.08,25.57112809]
[1738241737129,0.03,240.16,240.08,12.15927956]
[1738241742655,0.03,240.16,240.08,25.57112809]
[1738241745477,0.03,240.16,240.08,12.15927956]
[1738241745774,8.02407956,240.16,240.08,12.15927956]
[1738241746479,7.99407956,240.15,240.08,12.15927956]
[1738241746651,7.99407956,240.15,240.08,4.1652]
[1738241747683,12.15817956,240.15,240.08,4.1652]
[1738241748686,7.99407956,240.14,240.07,7.99407956]
[1738241748850,7.99407956,240.13,240.06,146.92247956]
[1738241751402,7.99407956,240.13,240.06,12.22247956]
[1738241751594,7.99407956,240.12,240.06,0.063]
[1738241751987,7.99407956,240.15,240.07,7.99407956]
[1738241752218,4.1938,240.16,240.07,7.99407956]
[1738241753308,4.1938,240.16,240.08,4.1652]
[1738241753477,0.03,240.16,240.08,4.1652]
[1738241754289,0.03,240.16,240.08,19.79123174]
[1738241754503,0.03,240.16,240.12,13.41184853]
[1738241754809,0.03,240.16,240.15,7.99407956]
[1738241755305,0.03,240.16,240.15,12.15807956]
[1738241757114,0.03,240.16,240.15,7.99407956]
[1738241760685,0.03,240.16,240.13,12.15827956]
[1738241761312,0.03,240.16,240.13,7.99407956]
[1738241762495,0.03,240.16,240.11,7.99407956]
[1738241764491,0.03,240.16,240.11,12.15877956]
[1738241766130,8.02407956,240.16,240.09,7.99407956]
[1738241766296,7.99407956,240.1,240.06,0.063]
[1738241766499,7.99407956,240.08,240.06,0.063]
[1738241771629,0.03,240.09,240.06,0.063]
[1738241772936,0.03,240.09,240.06,4.2286]
[1738241777927,0.03,240.09,240.07,7.99407956]
[1738241778226,0.03,240.09,240.08,7.99407956]
[1738241778819,1.5637,240.16,240.08,7.99407956]
[1738241779021,0.03,240.16,240.14,7.99407956]
[1738241779917,0.03,240.16,240.14,12.15817956]
[1738241781226,0.03,240.16,240.15,7.99407956]
[1738241783436,0.03,240.16,240.15,12.15807956]
[1738241786336,0.03,240.16,240.15,7.99407956]
[1738241786538,0.03,240.16,240.11,7.99407956]
[1738241787538,0.03,240.16,240.09,7.99407956]
[1738241787732,0.03,240.16,240.09,12.15907956]
[1738241791530,0.03,240.16,240.09,7.99407956]
[1738241792561,7.99407956,240.15,240.08,4.1652]
[1738241793048,4.194,240.16,240.09,7.99407956]
[1738241793553,4.194,240.16,240.06,0.063]
[1738241793554,7.99407956,240.11,240.06,0.063]
[1738241794058,7.99407956,240.09,240.06,0.063]
[1738241795146,12.15917956,240.09,240.06,0.063]
[1738241796739,7.99407956,240.07,240.06,0.063]
[1738241797246,0.03,240.16,240.06,4.2285]
[1738241797437,4.1939,240.16,240.1,7.99407956]
[1738241798342,0.03,240.16,240.1,7.99407956]
[1738241798752,8.02407956,240.16,240.1,7.99407956]
[1738241799351,8.02407956,240.16,240.08,7.99407956]
[1738241799540,7.99407956,240.14,240.06,8.05707956]
[1738241800646,16.66458302,240.15,240.07,12.50058302]
[1738241800855,12.50058302,240.1,240.06,0.063]
[1738241802646,4.1651,240.09,240.06,0.063]
[1738241802942,12.50058302,240.08,240.06,0.063]
[1738241803856,4.1654,240.07,240.06,0.063]
[1738241810065,4.1649,240.1,240.06,12.56358302]
[1738241810368,4.1644,240.13,240.06,12.56358302]
[1738241810772,36.66498302,240.13,240.06,12.56358302]
[1738241811862,0.25098,240.12,240.06,12.56358302]
[1738241812071,36.66498302,240.13,240.06,0.063]
[1738241812072,17.12675541,240.11,240.06,0.063]
[1738241814865,20.0,240.07,240.06,0.063]
[1738241815243,4.1651,240.09,240.06,0.063]
[1738241816760,4.1649,240.1,240.06,0.063]
[1738241818066,4.1949,240.1,240.06,0.063]
[1738241819876,0.03,240.1,240.08,12.50058302]
[1738241820061,0.03,240.1,240.09,0.62464293]
[1738241820778,0.03,240.1,240.09,8.6199421]
[1738241821282,0.03,240.1,240.09,7.99529917]
[1738241821575,0.03,240.1,240.09,12.16039917]
[1738241822548,0.03,240.1,240.09,12.49277299]
[1738241823470,0.03,240.1,240.09,26.52917167]
[1738241823688,0.03,240.1,240.09,46.86484466]
[1738241823866,0.03,240.1,240.09,128.56484466]
[1738241824173,0.03,240.1,240.09,127.94029451]
[1738241824363,0.03,240.1,240.09,115.44752152]
[1738241825155,0.03,240.1,240.09,119.61262152]
[1738241827176,0.03,240.1,240.09,132.10539451]
[1738241827477,0.03,240.1,240.09,133.60735451]
[1738241828481,0.03,240.1,240.09,268.30735451]
[1738241830657,3.7227,240.23,240.12,20.0]
[1738241830984,3.7227,240.23,240.17,12.49277299]
[1738241831978,3.7227,240.23,240.16,12.49277299]
[1738241832359,16.21547299,240.23,240.15,12.49277299]
[1738241833686,3.7227,240.23,240.16,12.49277299]
[1738241835099,3.7227,240.23,240.12,81.7]
[1738241835100,3.7227,240.23,240.18,12.49277299]
[1738241835571,3.7227,240.23,240.17,12.49277299]
[1738241841794,3.7227,240.23,240.19,12.49277299]
[1738241842380,8.3253,240.24,240.21,12.49277299]
[1738241842583,4.1623,240.25,240.21,12.49277299]
[1738241842787,0.03,240.23,240.21,12.49277299]
[1738241844592,0.03,240.23,240.21,7.99207076]
[1738241847088,0.03,240.23,240.2,7.99207076]
[1738241849187,0.03,240.23,240.18,7.99207076]
[1738241855101,0.03,240.23,240.17,0.063]
[1738241855102,4.1926,240.23,240.17,0.063]
[1738241856299,4.1926,240.23,240.18,0.063]
[1738241858288,0.03,240.23,240.2,7.99207076]
[1738241858620,0.03,240.23,240.22,7.99207076]
[1738241861005,0.03,240.23,240.22,12.15487076]
[1738241861376,0.25098,240.22,240.18,0.063]
[1738241861582,7.99207076,240.21,240.18,0.063]
[1738241862091,8.02207076,240.23,240.18,0.063]
[1738241863407,4.1628,240.22,240.18,0.063]
[1738241863982,24.1628,240.22,240.18,0.063]
[1738241866013,4.1628,240.22,240.18,0.063]
[1738241866404,0.03,240.23,240.19,7.99207076]
[1738241868093,0.03,240.23,240.21,7.99207076]
[1738241870007,0.03,240.23,240.21,12.15487076]
[1738241871508,0.03,240.23,240.22,7.99207076]
[1738241880925,0.03,240.23,240.22,12.15487076]
[1738241882919,0.03,240.23,240.22,7.99207076]
[1738241884918,0.03,240.23,240.18,0.063]
[1738241885127,0.03,240.23,240.18,8.05507076]
[1738241886132,0.03,240.23,240.19,7.99207076]
[1738241886431,0.03,240.23,240.2,7.99207076]
[1738241886928,0.03,240.23,240.21,7.99207076]
[1738241887105,0.03,240.23,240.22,7.99207076]
[1738241888413,0.03,240.23,240.22,12.15487076]
[1738241888923,0.03,240.23,240.22,7.99207076]
[1738241889130,0.03,240.23,240.21,7.99207076]
[1738241889510,0.03,240.23,240.22,7.99207076]
[1738241892530,0.03,240.23,240.22,8.05507076]
[1738241898253,0.03,240.23,240.22,0.063]
[1738241902649,8.14756076,240.23,240.22,0.063]
[1738241902848,8.73452315,240.23,240.22,0.063]
[1738241903831,12.89712315,240.23,240.22,0.063]
[1738241904143,12.31016076,240.23,240.22,0.063]
[1738241905738,12.56114076,240.23,240.22,0.063]
[1738241905924,13.02261315,240.23,240.22,0.063]
[1738241906439,12.56114076,240.23,240.22,0.063]
[1738241913668,13.02261315,240.23,240.22,0.063]
[1738241917554,12.56114076,240.23,240.22,0.063]
[1738241919468,12.31016076,240.23,240.22,0.063]
[1738241920670,0.03,240.23,240.22,0.063]
[1738241921664,0.03,240.23,240.22,8.05507076]
[1738241924646,0.03,240.23,240.22,12.21787076]
[1738241926860,0.03,240.23,240.22,8.05507076]
[1738241928485,0.03,240.23,240.22,0.063]
[1738241942570,8.02207076,240.23,240.22,0.063]
[1738241944480,12.18467076,240.23,240.22,0.063]
[1738241946295,12.31016076,240.23,240.22,0.063]
[1738241946594,12.77163315,240.23,240.22,0.063]
[1738241947491,12.31016076,240.23,240.22,0.063]
[1738241949188,8.02207076,240.23,240.22,0.063]
[1738241951609,0.03,240.23,240.22,0.063]
[1738241955599,0.03,240.23,240.22,4.2258]
[1738241955904,0.03,240.23,240.22,12.21787076]
[1738241960019,0.03,240.23,240.22,8.05507076]
[1738241961220,0.03,240.23,240.22,0.063]
[1738241962131,8.02207076,240.23,240.22,0.063]
[1738241963222,12.18467076,240.23,240.22,0.063]
[1738241963731,12.31016076,240.23,240.22,0.063]
[1738241965332,12.56114076,240.23,240.22,0.063]
[1738241965920,13.02261315,240.23,240.22,0.063]
[1738241970534,26.43446168,240.23,240.22,0.0001]
[1738241972240,26.43446168,240.23,240.18,0.063]
[1738241972241,20.25098,240.19,240.18,0.0001]
[1738241972421,42.11637168,240.19,240.18,0.0001]
[1738241972624,46.27967168,240.19,240.17,0.0001]
[1738241973440,13.66282853,240.18,240.17,0.0001]
[1738241973645,1.25098,240.18,240.17,0.0001]
[1738241974759,5.41448,240.18,240.17,0.0001]
[1738241975043,32.40655076,240.18,240.17,0.0001]
[1738241976529,32.53204076,240.18,240.17,0.0001]
[1738241977659,45.94388929,240.18,240.17,0.0001]
[1738241977826,46.40536168,240.18,240.17,0.0001]
[1738241982130,45.94388929,240.18,240.17,0.0001]
[1738241982338,46.40536168,240.18,240.17,0.0001]
[1738241983549,48.07319368,240.18,240.17,0.0001]
[1738241992956,34.19987276,240.18,240.17,0.0001]
[1738242000070,34.22987276,240.18,240.17,0.0001]
[1738242002571,47.64172129,240.18,240.17,0.0001]
[1738242003064,0.25098,240.13,240.09,0.063]
[1738242003280,8.24305076,240.1,240.09,0.063]
[1738242003481,32.42975543,240.12,240.06,0.063]
[1738242003482,28.11756076,240.07,240.06,0.063]
[1738242004070,28.24305076,240.07,240.06,0.063]
[1738242004248,41.65489929,240.07,240.06,0.0001]
[1738242004447,42.11637168,240.07,240.06,0.0001]
[1738242004644,32.40845076,240.07,240.06,0.0001]
[1738242005172,32.15747076,240.07,240.06,0.0001]
[1738242005762,20.0,240.07,240.06,0.0001]
[1738242005959,7.99207076,240.1,240.06,0.0001]
[1738242008567,7.99207076,240.12,240.06,0.0001]
[1738242008770,14.18858997,240.19,240.08,1.6024]
[1738242008771,7.99207076,240.13,240.08,1.6024]
[1738242009064,7.99207076,240.15,240.08,1.6024]
[1738242009771,12.15597076,240.16,240.09,6.6006]
[1738242010581,7.99207076,240.16,240.09,6.6006]
[1738242010767,7.99207076,240.16,240.09,14.59267076]
[1738242011770,7.99207076,240.16,240.09,18.75767076]
[1738242012488,7.99207076,240.16,240.09,10.7656]
[1738242014980,1.697832,240.18,240.09,10.7656]
[1738242014981,0.03,240.18,240.14,7.99207076]
[1738242015573,0.03,240.18,240.1,89.69207076]
[1738242015761,7.99207076,240.17,240.1,89.69207076]
[1738242015964,4.1936,240.18,240.1,81.7]
[1738242015965,7.99207076,240.15,240.1,81.7]
[1738242016567,7.99207076,240.15,240.09,6.6006]
[1738242016568,7.99207076,240.13,240.09,6.6006]
[1738242020267,7.99207076,240.12,240.09,6.6006]
[1738242022469,7.99207076,240.11,240.09,6.6006]
[1738242024083,12.15647076,240.13,240.09,6.6006]
[1738242024386,0.46147239,240.15,240.09,6.6006]
[1738242024387,8.02207076,240.15,240.09,6.6006]
[1738242024574,12.18617076,240.15,240.09,6.6006]
[1738242024967,4.1941,240.15,240.09,6.6006]
[1738242025183,0.03,240.15,240.09,10.7656]
[1738242025563,0.03,240.15,240.09,6.6006]
[1738242025761,7.99207076,240.14,240.09,6.6006]
[1738242027897,12.15637076,240.14,240.09,6.6006]
[1738242036300,12.18637076,240.14,240.09,6.6006]
[1738242039506,8.02207076,240.14,240.09,6.6006]
[1738242039713,0.03,240.14,240.09,10.7656]
[1738242039879,0.03,240.14,240.09,18.75767076]
[1738242040487,0.03,240.14,240.09,10.7656]
[1738242040987,7.99207076,240.12,240.09,6.6006]
[1738242041184,7.99207076,240.1,240.08,1.6024]
[1738242041386,7.99207076,240.1,240.07,0.063]
[1738242042403,7.99207076,240.08,240.07,0.063]
[1738242044001,12.15727076,240.08,240.07,0.063]
[1738242044676,12.40825076,240.08,240.07,0.063]
[1738242045493,25.82009929,240.08,240.07,0.063]
[1738242045702,26.28157168,240.08,240.07,0.063]
[1738242047301,26.40706168,240.08,240.07,0.063]
[1738242049494,26.40706168,240.08,240.07,0.0001]
[1738242049690,27.40706168,240.08,240.07,0.0001]
[1738242051404,14.66282853,240.07,240.01,0.02700774]
[1738242051605,8.11756076,240.02,240.01,0.02700774]
[1738242051910,8.57903315,240.02,240.01,0.02700774]
[1738242052319,54.08465472,240.02,240.01,7.74e-06]
[1738242052533,0.25098,240.01,240.0,7.74e-06]
[1738242052813,40.2113338,240.01,240.0,7.74e-06]
[1738242053406,44.3777338,240.01,240.0,7.74e-06]
[1738242053719,59.78958233,240.01,240.0,7.74e-06]
[1738242053922,60.25105472,240.01,240.0,7.74e-06]
[1738242054124,59.25105472,240.01,240.0,7.74e-06]
[1738242055406,59.37654472,240.01,240.0,7.74e-06]
[1738242056232,26.53375168,240.01,240.0,7.74e-06]
[1738242058132,27.53375168,240.01,240.0,7.74e-06]
[1738242059522,35.52582244,240.01,240.0,7.74e-06]
[1738242059829,59.50203472,240.01,240.0,7.74e-06]
[1738242061832,26.53375168,240.01,240.0,7.74e-06]
[1738242062308,59.50203472,240.01,240.0,7.74e-06]
[1738242064237,59.50203472,240.01,239.94,0.063]
[1738242064238,20.37647,239.97,239.94,0.063]
[1738242064451,21.78038929,239.95,239.94,0.063]
[1738242065327,26.07337929,239.95,239.94,0.063]
[1738242066122,26.07337929,239.95,239.94,0.0001]
[1738242066324,12.66153076,239.95,239.94,0.0001]
[1738242067343,96.91380853,239.94,239.93,0.0001]
[1738242067528,83.50196,239.93,239.92,0.0001]
[1738242067729,92.95550315,239.93,239.92,0.0001]
[1738242067939,92.49403076,239.93,239.92,0.0001]
[1738242068638,91.49403076,239.93,239.92,0.0001]
[1738242069218,105.90587929,239.93,239.92,0.0001]
[1738242069436,104.90587929,239.93,239.92,0.0001]
[1738242069641,109.07367929,239.93,239.92,0.0001]
[1738242071136,110.07367929,239.93,239.92,0.0001]
[1738242071822,0.37647,239.88,239.79,6.3163]
[1738242072046,7.99207076,239.83,239.79,6.3163]
[1738242072559,0.25098,239.83,239.79,6.3163]
[1738242073251,20.0,239.84,239.79,6.3163]
[1738242073543,20.0,239.84,239.79,6.3793]
[1738242074352,32.16147076,239.84,239.79,6.3793]
[1738242074645,20.0,239.84,239.79,14.37137076]
[1738242074851,20.0,239.84,239.8,7.99207076]
[1738242075234,20.0,239.84,239.79,14.37137076]
[1738242075552,20.0,239.84,239.79,6.3793]
[1738242075731,32.16147076,239.84,239.79,6.3793]
[1738242076049,24.1694,239.84,239.79,6.3793]
[1738242076956,32.16147076,239.84,239.79,6.3793]
[1738242077154,12.41265076,239.83,239.79,6.3793]
[1738242078531,4.42058,239.83,239.79,6.3793]
[1738242078938,12.41265076,239.83,239.79,6.3793]
[1738242079856,7.99207076,239.81,239.79,6.3793]
[1738242081136,12.16197076,239.82,239.79,6.3793]
[1738242081332,4.1699,239.82,239.79,6.3793]
[1738242083063,12.16197076,239.82,239.79,6.3793]
[1738242083757,7.99207076,239.81,239.79,6.3793]
[1738242084561,8.36854076,239.8,239.79,0.063]
[1738242085666,4.17,239.81,239.79,0.063]
[1738242085961,12.16207076,239.81,239.79,0.063]
[1738242086865,7.99207076,239.8,239.79,0.063]
[1738242087238,12.16217076,239.8,239.79,0.063]
[1738242087972,12.41315076,239.8,239.79,0.063]
[1738242088143,12.53864076,239.8,239.79,0.063]
[1738242088855,12.66413076,239.8,239.79,0.063]
[1738242090271,13.12560315,239.8,239.79,0.063]
[1738242091269,12.66413076,239.8,239.79,0.063]
[1738242093248,13.12560315,239.8,239.79,0.063]
[1738242094167,12.66413076,239.8,239.79,0.063]
[1738242094375,87.1699,239.82,239.79,0.063]
[1738242094571,4.1694,239.84,239.79,0.063]
[1738242094865,0.37647,239.83,239.79,0.063]
[1738242095087,0.25098,239.83,239.79,0.063]
[1738242095650,20.0,239.81,239.79,0.063]
[1738242097274,0.25098,239.82,239.79,0.063]
[1738242097473,0.12549,239.86,239.79,0.063]
[1738242097474,90.99207076,239.88,239.8,7.99207076]
[1738242097774,4.169,239.87,239.81,7.99207076]
[1738242097973,0.50196,239.86,239.79,9.66137076]
[1738242098353,20.0,239.84,239.79,9.66137076]
[1738242098548,20.0,239.83,239.79,1.6693]
[1738242098756,20.0,239.83,239.79,9.66137076]
[1738242100249,20.0,239.83,239.79,1.6693]
[1738242103069,7.99207076,239.83,239.79,0.063]
[1738242103267,8.36854076,239.82,239.79,0.063]
[1738242103571,8.36854076,239.8,239.79,0.063]
[1738242105176,12.53864076,239.8,239.79,0.063]
[1738242105380,4.67206,239.8,239.79,0.063]
[1738242106056,12.66413076,239.8,239.79,0.063]
[1738242106677,13.12560315,239.8,239.79,0.063]
[1738242107378,26.53745168,239.8,239.79,0.063]
[1738242110189,12.66413076,239.8,239.79,0.063]
[1738242113063,4.67206,239.8,239.79,0.063]
[1738242113276,0.50196,239.8,239.79,0.063]
[1738242113472,16.35000141,239.87,239.79,8.05507076]
[1738242113473,12.16107076,239.86,239.79,8.05507076]
[1738242113764,0.37647,239.85,239.79,8.05507076]
[1738242114168,20.0,239.83,239.79,8.05507076]
[1738242114482,13.59000141,239.87,239.82,7.99207076]
[1738242114682,13.59000141,239.87,239.86,7.99207076]
[1738242114886,13.59000141,239.87,239.84,7.99207076]
[1738242115669,13.59000141,239.87,239.83,7.99207076]
[1738242116191,13.59000141,239.87,239.84,7.99207076]
[1738242117893,13.59000141,239.87,239.83,7.99207076]
[1738242118892,13.59000141,239.87,239.82,7.99207076]
[1738242119070,13.59000141,239.87,239.79,13.47484853]
[1738242119071,0.50196,239.84,239.79,0.063]
[1738242119279,7.99207076,239.82,239.79,0.063]
[1738242119862,7.99207076,239.8,239.79,0.063]
[1738242120086,8.49403076,239.8,239.79,0.063]
[1738242120793,12.66413076,239.8,239.79,0.063]
[1738242121477,26.07597929,239.8,239.79,0.063]
[1738242122679,30.62644377,239.8,239.79,0.063]
[1738242124411,31.08791616,239.8,239.79,0.063]
[1738242125399,30.62644377,239.8,239.79,0.063]
[1738242125885,17.21459524,239.8,239.79,0.063]
[1738242126401,13.04449524,239.8,239.79,0.063]
[1738242126603,0.50196,239.8,239.79,0.063]
[1738242127278,20.50196,239.8,239.79,0.063]
[1738242127876,20.0,239.8,239.79,0.063]
[1738242129912,37.55057763,239.8,239.79,0.063]
[1738242130782,37.08910524,239.8,239.79,0.063]
[1738242133706,12.66802524,239.8,239.79,0.063]
[1738242133887,0.12549,239.8,239.79,0.063]
[1738242134085,16.71213524,239.83,239.79,0.063]
[1738242134311,12.54253524,239.82,239.79,0.063]
[1738242135208,12.79351524,239.84,239.79,0.063]
[1738242135506,36.96291524,239.84,239.79,0.063]
[1738242136082,12.54253524,239.82,239.79,0.063]
[1738242136479,12.79351524,239.81,239.79,0.063]
[1738242136685,12.79351524,239.8,239.79,0.063]
[1738242138203,12.91900524,239.8,239.79,0.063]
[1738242138407,17.08910524,239.8,239.79,0.063]
[1738242142910,30.50095377,239.8,239.79,0.063]
[1738242143405,17.08910524,239.8,239.79,0.063]
[1738242144292,12.54253524,239.8,239.79,0.063]
[1738242145118,16.96361524,239.8,239.79,0.063]
[1738242146212,17.08910524,239.8,239.79,0.063]
[1738242153422,20.25098,239.77,239.76,0.063]
[1738242153721,46.66683616,239.77,239.76,0.063]
[1738242154319,0.25098,239.72,239.67,6.6653]
[1738242154619,12.54253524,239.7,239.67,6.6653]
[1738242155201,0.25098,239.69,239.67,6.6653]
[1738242155426,4.42308,239.69,239.67,6.6653]
[1738242156028,4.42308,239.69,239.67,6.7283]
[1738242156315,46.66683616,239.68,239.67,0.063]
[1738242157230,46.79232616,239.68,239.67,0.0001]
[1738242159702,59.3348614,239.68,239.67,0.0001]
[1738242160020,46.79232616,239.68,239.67,0.0001]
[1738242160223,20.50196,239.63,239.55,0.063]
[1738242160424,12.54253524,239.59,239.55,0.063]
[1738242160724,12.54253524,239.6,239.55,0.063]
[1738242161397,0.50196,239.59,239.55,0.063]
[1738242164525,20.0,239.62,239.57,7.7034]
[1738242164722,20.50196,239.62,239.57,20.24593524]
[1738242164906,20.0,239.62,239.57,20.24593524]